fUSD/lending_fUSD_20250510
["ID","MTS","AMOUNT","RATE_DAILY","PERIOD"]
[360529792,1746846638332,-400.0,0.00019996,2]
[360529794,1746846638341,-400.0,0.00019996,2]
[360529796,1746846638350,-400.0,0.00019996,2]
[360529798,1746846638360,-276.86218796,0.00019996,2]
[360529800,1746846638374,-408.96846954,0.00019996,2]
[360529802,1746846638389,-400.0,0.00019996,2]
[360529804,1746846638398,-403.3789429,0.00019996,2]
[360529805,1746846638409,-807.41,0.00019996,2]
[360529807,1746846638424,-403.14606715,0.00019996,2]
[360529809,1746846638434,-373.52710781,0.00019996,2]
[360529811,1746846638444,-413.49116565,0.00019996,2]
[360529813,1746846638454,-169.51423587,0.00019996,2]
[360529815,1746846638465,-400.0,0.00019996,2]
[360529817,1746846638475,-400.0,0.00019996,2]
[360529819,1746846638485,-416.16898615,0.00019996,2]
[360529821,1746846638496,-400.0,0.00019996,2]
[360529822,1746846638507,-400.0,0.00019996,2]
[360529823,1746846638519,-400.0,0.00019996,2]
[360529824,1746846638528,-406.31720835,0.00019996,2]
[360529825,1746846638538,-400.0,0.00019996,2]
[360529826,1746846638547,-400.0,0.00019996,2]
[360529827,1746846638559,-250.0,0.00019996,2]
[360529828,1746846638569,-410.49858618,0.00019996,2]
[360529829,1746846638579,-400.0,0.00019996,2]
[360529830,1746846638588,-400.0,0.00019996,2]
[360529831,1746846638597,-400.0,0.00019996,2]
[360529832,1746846638606,-400.0,0.00019996,2]
[360529833,1746846638615,-269.50841051,0.00019996,2]
[360529834,1746846638628,-130.49158949,0.00019996,2]
[360529835,1746846638637,-400.0,0.00019996,2]
[360529836,1746846638646,-400.0,0.00019996,2]
[360529837,1746846638655,-400.0,0.00019996,2]
[360529838,1746846638664,-400.0,0.00019996,2]
[360529839,1746846638673,-400.0,0.00019996,2]
[360529840,1746846638682,-755.62587135,0.00019996,2]
[360529841,1746846638693,-244.37412865,0.00019996,2]
[360529842,1746846638702,-400.20944695,0.00019996,2]
[360529843,1746846638711,-400.0,0.00019996,2]
[360529844,1746846638720,-400.0,0.00019996,2]
[360529845,1746846638730,-491.51068673,0.00019996,2]
[360529846,1746846638739,-400.0,0.00019996,2]
[360529847,1746846638748,-400.0,0.00019996,2]
[360529848,1746846638757,-400.0,0.00019996,2]
[360529849,1746846638767,-400.0,0.00019996,2]
[360529850,1746846638776,-406.55,0.00019996,2]
[360529851,1746846638785,-307.04864341,0.00019996,2]
[360529852,1746846638798,-400.0,0.00019996,2]
[360529853,1746846638807,-400.0,0.00019996,2]
[360529854,1746846638816,-1383.36,0.00019996,2]
[360529855,1746846638825,-643.51,0.00019996,2]
[360529856,1746846638835,-400.0,0.00019996,2]
[360529857,1746846638844,-400.0,0.00019996,2]
[360529858,1746846638853,-400.0,0.00019996,2]
[360529859,1746846638862,-400.0,0.00019996,2]
[360529860,1746846638871,-400.0,0.00019996,2]
[360529861,1746846638880,-400.0,0.00019996,2]
[360529862,1746846638889,-276.66688871,0.00019996,2]
[360529863,1746846638898,-22482.35,0.00019996,2]
[360529864,1746846638907,-1106.96,0.00019996,2]
[360529865,1746846638916,-539.52,0.00019996,2]
[360529866,1746846638925,-532.69,0.00019996,2]
[360529867,1746846638933,-400.0,0.00019996,2]
[360529868,1746846638943,-283.97088876,0.00019996,2]
[360529869,1746846638952,-400.0,0.00019996,2]
[360529870,1746846638961,-453.89,0.00019996,2]
[360529871,1746846638970,-400.0,0.00019996,2]
[360529872,1746846638979,-500.0,0.00019996,2]
[360529873,1746846638988,-400.0,0.00019996,2]
[360529874,1746846638997,-400.0,0.00019996,2]
[360529875,1746846639006,-400.0,0.00019996,2]
[360529876,1746846639018,-400.0,0.00019996,2]
[360529877,1746846639027,-400.0,0.00019996,2]
[360529878,1746846639036,-649.45,0.00019996,2]
[360529879,1746846639045,-282.02760695,0.00019996,2]
[360529880,1746846639054,-601.24,0.00019996,2]
[360529881,1746846639063,-625.71,0.00019996,2]
[360529882,1746846639072,-400.0,0.00019996,2]
[360529883,1746846639082,-400.0,0.00019996,2]
[360529884,1746846639091,-400.0,0.00019996,2]
[360529885,1746846639100,-590.41,0.00019996,2]
[360529886,1746846639109,-497.12,0.00019996,2]
[360529887,1746846639119,-427.58,0.00019996,2]
[360529888,1746846639129,-400.0,0.00019996,2]
[360529889,1746846639139,-1857.23,0.00019996,2]
[360529890,1746846639357,-516.07,0.00019996,2]
[360529891,1746846639367,-400.0,0.00019996,2]
[360529892,1746846639377,-239.47198922,0.00019996,2]
[360529893,1746846639386,-400.0,0.00019996,2]
[360529894,1746846639395,-400.0,0.00019996,2]
[360529895,1746846639405,-216.76772316,0.00019996,2]
[360529896,1746846639415,-400.0,0.00019996,2]
[360529897,1746846639425,-400.0,0.00019996,2]
[360529898,1746846639434,-155.96183691,0.00019996,2]
[360529899,1746846639443,-400.0,0.00019996,2]
[360529900,1746846639452,-455.25,0.00019996,2]
[360529901,1746846639464,-1299.13,0.00019996,2]
[360529902,1746846639473,-1016.76,0.00019996,2]
[360529903,1746846639482,-400.0,0.00019996,2]
[360529904,1746846639492,-400.0,0.00019996,2]
[360529905,1746846639503,-400.0,0.00019996,2]
[360529906,1746846639515,-1608.44,0.00019996,2]
[360529907,1746846639524,-400.0,0.00019996,2]
[360529908,1746846639534,-2776.26,0.00019996,2]
[360529909,1746846639544,-491.59,0.00019996,2]
[360529910,1746846639553,-400.0,0.00019996,2]
[360529911,1746846639563,-1171.72,0.00019996,2]
[360529912,1746846639572,-400.0,0.00019996,2]
[360529913,1746846639581,-400.0,0.00019996,2]
[360529914,1746846639590,-426.59,0.00019996,2]
[360529915,1746846639600,-1536.41,0.00019996,2]
[360529916,1746846639609,-256.93,0.00019996,2]
[360529917,1746846639620,-759.17,0.00019996,2]
[360529918,1746846639629,-491.66,0.00019996,2]
[360529919,1746846639637,-658.1,0.00019996,2]
[360529920,1746846639646,-529.31336498,0.00019996,2]
[360529921,1746846639656,-49807.13241545,0.00019997,2]
[360529924,1746846640010,-2421.15000765,0.00019997,2]
[360529925,1746846640023,-997.92906143,0.00019997,2]
[360529926,1746846640115,-764.947,0.00019997,2]
[360529927,1746846640127,-468.76500001,0.00019997,2]
[360529928,1746846640323,-967.07159406,0.00019997,2]
[360529929,1746846640378,-851.4137668,0.00019997,2]
[360529942,1746846642882,-1249.63,0.00019996,2]
[360529943,1746846642892,-405.4,0.00019996,2]
[360529944,1746846642902,-670.95000632,0.00019997,2]
[360529945,1746846642911,-666.0,0.00019997,2]
[360529946,1746846642920,-151.0,0.00019997,2]
[360529947,1746846642931,-400.0,0.00019997,2]
[360529948,1746846642940,-400.0,0.00019997,2]
[360529949,1746846642949,-400.0,0.00019997,2]
[360529950,1746846642958,-400.0,0.00019997,2]
[360529951,1746846642967,-407.4343545,0.00019997,2]
[360529952,1746846642976,-226.03149518,0.00019997,2]
[360529953,1746846642988,-173.96850482,0.00019997,2]
[360529954,1746846642997,-382.42129678,0.00019997,2]
[360529955,1746846643008,-17.57870322,0.00019997,2]
[360529956,1746846643017,-400.0,0.00019997,2]
[360529957,1746846643026,-211.42069345,0.00019997,2]
[360529958,1746846643036,-212.09139146,0.00019997,2]
[360529959,1746846643047,-187.90860854,0.00019997,2]
[360529960,1746846643056,-548.00639146,0.00019997,2]
[360529961,1746846643067,-252.26134159,0.00019997,2]
[360529962,1746846643079,-7.14226695,0.00019997,2]
[360529963,1746846643088,-400.0,0.00019997,2]
[360529964,1746846643097,-400.0,0.00019997,2]
[360529965,1746846643107,-400.0,0.00019997,2]
[360529966,1746846643117,-400.0,0.00019997,2]
[360529967,1746846643126,-400.0,0.00019997,2]
[360529968,1746846643136,-228.29045144,0.00019997,2]
[360529969,1746846643146,-400.0,0.00019997,2]
[360529970,1746846643155,-250.0,0.00019997,2]
[360529971,1746846643165,-400.0,0.00019997,2]
[360529972,1746846643175,-400.0,0.00019997,2]
[360529973,1746846643184,-400.0,0.00019997,2]
[360529974,1746846643193,-400.0,0.00019997,2]
[360529975,1746846643202,-418.42207792,0.00019997,2]
[360529976,1746846643212,-400.0,0.00019997,2]
[360529977,1746846643221,-400.0,0.00019997,2]
[360529978,1746846643231,-400.0,0.00019997,2]
[360529979,1746846643240,-400.0,0.00019997,2]
[360529980,1746846643249,-400.0,0.00019997,2]
[360529981,1746846643258,-1000.0,0.00019997,2]
[360529982,1746846643268,-363.41300711,0.00019997,2]
[360529984,1746846643286,-36.58699289,0.00019997,2]
[360529986,1746846643295,-410.80402947,0.00019997,2]
[360529988,1746846643304,-400.0,0.00019997,2]
[360529989,1746846643314,-317.91302146,0.00019997,2]
[360529990,1746846643326,-82.08697854,0.00019997,2]
[360529991,1746846643335,-400.0,0.00019997,2]
[360529992,1746846643345,-371.92927085,0.00019997,2]
[360529993,1746846643370,-28.07072915,0.00019997,2]
[360529994,1746846643380,-406.55,0.00019997,2]
[360529995,1746846643389,-400.0,0.00019997,2]
[360529996,1746846643399,-178.61548999,0.00019997,2]
[360529997,1746846643423,-54.88274976,0.00019997,2]
[360529998,1746846643432,-1383.36,0.00019997,2]
[360529999,1746846643442,-643.51,0.00019997,2]
[360530000,1746846643452,-429.45,0.00019997,2]
[360530001,1746846643462,-400.0,0.00019997,2]
[360530002,1746846643472,-400.0,0.00019997,2]
[360530003,1746846643489,-400.0,0.00019997,2]
[360530004,1746846643500,-2941.9,0.00019997,2]
[360530005,1746846643509,-400.0,0.00019997,2]
[360530006,1746846643518,-125.64501272,0.00019997,2]
[360530007,1746846643530,-274.35498728,0.00019997,2]
[360530008,1746846643539,-400.0,0.00019997,2]
[360530009,1746846643549,-400.0,0.00019997,2]
[360530010,1746846643558,-400.0,0.00019997,2]
[360530011,1746846643567,-233.19096791,0.00019997,2]
[360530012,1746846643590,-298.61702987,0.00019997,2]
[360530013,1746846643599,-6020.59761774,0.00019997,2]
[360530014,1746846643610,-7502.35497776,0.00019997,2]
[360530015,1746846643621,-8846.81198358,0.00019997,2]
[360530016,1746846643635,-112.58542092,0.00019997,2]
[360530017,1746846643644,-400.0,0.00019997,2]
[360530018,1746846643654,-545.87,0.00019997,2]
[360530019,1746846643663,-1106.96,0.00019997,2]
[360530020,1746846643672,-539.52,0.00019997,2]
[360530021,1746846643681,-400.0,0.00019997,2]
[360530022,1746846643690,-468.39,0.00019997,2]
[360530023,1746846643700,-532.69,0.00019997,2]
[360530024,1746846643710,-1347.27,0.00019997,2]
[360530025,1746846643719,-400.0,0.00019997,2]
[360530026,1746846643728,-400.0,0.00019997,2]
[360530027,1746846643737,-453.89,0.00019997,2]
[360530028,1746846643747,-400.0,0.00019997,2]
[360530029,1746846643756,-500.0,0.00019997,2]
[360530030,1746846643766,-159.18098423,0.00019997,2]
[360530031,1746846643777,-400.0,0.00019997,2]
[360530032,1746846643787,-400.0,0.00019997,2]
[360530033,1746846643796,-400.0,0.00019997,2]
[360530034,1746846643806,-400.0,0.00019997,2]
[360530035,1746846643816,-649.45,0.00019997,2]
[360530036,1746846643825,-625.71,0.00019997,2]
[360530037,1746846643834,-601.24,0.00019997,2]
[360530038,1746846643843,-400.0,0.00019997,2]
[360530039,1746846643852,-400.0,0.00019997,2]
[360530040,1746846643862,-400.0,0.00019997,2]
[360530041,1746846643872,-590.41,0.00019997,2]
[360530042,1746846643882,-497.12,0.00019997,2]
[360530043,1746846643891,-427.58,0.00019997,2]
[360530044,1746846643900,-400.0,0.00019997,2]
[360530045,1746846643910,-1857.23,0.00019997,2]
[360530046,1746846643919,-516.07,0.00019997,2]
[360530047,1746846643928,-400.0,0.00019997,2]
[360530048,1746846643937,-400.0,0.00019997,2]
[360530049,1746846643947,-400.0,0.00019997,2]
[360530050,1746846643956,-372.56003812,0.00019997,2]
[360530051,1746846643966,-400.0,0.00019997,2]
[360530052,1746846643975,-400.0,0.00019997,2]
[360530053,1746846643984,-455.25,0.00019997,2]
[360530054,1746846643993,-1299.13,0.00019997,2]
[360530055,1746846644003,-1016.76,0.00019997,2]
[360530056,1746846644013,-400.0,0.00019997,2]
[360530057,1746846644023,-400.0,0.00019997,2]
[360530058,1746846644032,-400.0,0.00019997,2]
[360530059,1746846644042,-1608.44,0.00019997,2]
[360530060,1746846644051,-400.0,0.00019997,2]
[360530061,1746846644061,-2776.26,0.00019997,2]
[360530062,1746846644071,-491.59,0.00019997,2]
[360530063,1746846644080,-400.0,0.00019997,2]
[360530064,1746846644090,-1171.72,0.00019997,2]
[360530065,1746846644100,-400.0,0.00019997,2]
[360530066,1746846644109,-400.0,0.00019997,2]
[360530067,1746846644119,-426.59,0.00019997,2]
[360530068,1746846644128,-212.46238619,0.00019997,2]
[360530069,1746846644141,-1323.94761381,0.00019997,2]
[360530070,1746846644151,-759.17,0.00019997,2]
[360530071,1746846644160,-491.66,0.00019997,2]
[360530072,1746846644169,-658.1,0.00019997,2]
[360530073,1746846644179,-1249.63,0.00019997,2]
[360530074,1746846644188,-405.4,0.00019997,2]
[360530075,1746846644197,-252.68651323,0.00019998,2]
[360530076,1746846644206,-7677.05271406,0.00019998,2]
[360530077,1746846644232,-1121.145,0.00019998,2]
[360530078,1746846644243,-783.00307617,0.00019998,2]
[360530079,1746846644254,-300.42878841,0.00019998,2]
[360530080,1746846645755,-1484.73048015,0.00019998,2]
[360530081,1746846645856,-0.88381777,0.00019998,2]
[360530082,1746846645872,-4744.79967454,0.00019998,2]
[360530083,1746846645883,-323.57617519,0.00019998,2]
[360530084,1746846645918,-1000.93454938,0.00019998,2]
[360530085,1746846646130,-500.0,0.00019998,2]
[360530086,1746846646183,-282.78234949,0.00019998,2]
[360530087,1746846646194,-669.0,0.00019998,2]
[360530088,1746846646237,-645.12208,0.00019998,2]
[360530098,1746846715627,250.0,0.00017,2]
[360530099,1746846716687,300.0,0.00019,2]
[360530104,1746846752452,432.4745871,0.00019368,2]
[360530105,1746846753450,-171.40940879,0.00019589,2]
[360530108,1746846757001,-222.822099,0.00019589,2]
[360530109,1746846759991,-38.24307941,0.00019589,2]
[360530110,1746846761007,394.231508,0.00019491,2]
[360530112,1746846818727,150.0,0.00018986,7]
[360530113,1746847111979,1000.0,0.00018929,2]
[360530114,1746847156532,998.71,0.00018934,2]
[360530115,1746847327102,37700.0,0.0003,120]
[360530116,1746847522256,262.3,0.00017023,2]
[360530117,1746847522451,262.3,0.00019287,2]
[360530119,1746847702719,166.70466619,0.00012,30]
[360530124,1746847743266,182.51928359,0.0001194,2]
[360530132,1746847792047,262.68,0.00030136,120]
[360530146,1746847832010,-517.21841393,0.00019699,2]
[360530147,1746847832020,-689.6,0.000197,2]
[360530148,1746847832030,-176.330591,0.00019786,2]
[360530149,1746847832039,-207.4,0.00019886,2]
[360530150,1746847832048,-1200.0,0.00019897,2]
[360530151,1746847832058,-300.0,0.00019897,2]
[360530152,1746847832068,-2041.7255,0.00019898,2]
[360530153,1746847832077,-742.9429429,0.00019898,2]
[360530154,1746847832086,-1384.81652194,0.00019898,2]
[360530155,1746847832096,-876.63079725,0.00019898,2]
[360530156,1746847832105,-1384.81652191,0.00019898,2]
[360530157,1746847832114,-876.63079719,0.00019898,2]
[360530158,1746847832123,-1384.81652191,0.00019898,2]
[360530159,1746847832132,-1384.81652191,0.00019899,2]
[360530160,1746847832142,-1384.81652191,0.00019899,2]
[360530161,1746847832151,-1384.81652191,0.00019899,2]
[360530162,1746847832161,-223.99888794,0.00019899,2]
[360530163,1746847832170,-1384.81652191,0.00019899,2]
[360530164,1746847832179,-223.99888794,0.00019899,2]
[360530165,1746847832189,-1384.81652191,0.000199,2]
[360530166,1746847832198,-223.99888794,0.000199,2]
[360530167,1746847832208,-1384.81652191,0.000199,2]
[360530168,1746847832217,-779.739,0.000199,2]
[360530169,1746847832226,-1384.81652191,0.000199,2]
[360530170,1746847832236,-223.99888794,0.000199,2]
[360530171,1746847832245,-7139.08917573,0.000199,2]
[360530172,1746847832254,-2125.669,0.00019951,2]
[360530173,1746847832263,-500.0,0.00019973,2]
[360530174,1746847832272,-500.0,0.00019973,2]
[360530175,1746847832282,-500.0,0.00019973,2]
[360530176,1746847832290,-500.0,0.00019973,2]
[360530177,1746847832300,-500.0,0.00019973,2]
[360530178,1746847832309,-266.6377414,0.00019973,2]
[360530179,1746847832329,-233.3622586,0.00019973,2]
[360530180,1746847832338,-500.0,0.00019973,2]
[360530181,1746847832348,-400.0,0.00019996,2]
[360530182,1746847832357,-500.0,0.00019996,2]
[360530183,1746847832366,-450.0,0.00019996,2]
[360530184,1746847832376,-302.19627975,0.00019996,2]
[360530189,1746847837970,-876.63079719,0.00019898,2]
[360530190,1746847837980,-231.48372025,0.00019996,2]
[360530191,1746847837989,-464.46,0.00019996,2]
[360530192,1746847837999,-400.0,0.00019996,2]
[360530193,1746847838009,-165.22554256,0.00019996,2]
[360530194,1746847838021,-328.10445744,0.00019996,2]
[360530195,1746847838031,-1083.22,0.00019996,2]
[360530196,1746847838040,-1152.8,0.00019996,2]
[360530197,1746847838050,-150.0,0.00019996,2]
[360530198,1746847838059,-400.0,0.00019997,2]
[360530199,1746847838071,-400.0,0.00019997,2]
[360530200,1746847838081,-181.07554266,0.00019997,2]
[360530201,1746847838092,-218.92445734,0.00019997,2]
[360530202,1746847838102,-400.0,0.00019997,2]
[360530203,1746847838111,-118.62554296,0.00019997,2]
[360530204,1746847840065,-876.63079719,0.00019899,2]
[360530205,1746847840074,-170.66973396,0.00019997,2]
[360530206,1746847840085,-400.0,0.00019997,2]
[360530207,1746847840094,-133.49825006,0.00019997,2]
[360530208,1746847840107,-266.50174994,0.00019997,2]
[360530209,1746847840118,-18.24292063,0.00019997,2]
[360530210,1746847840130,-253.91949985,0.00019997,2]
[360530211,1746847840156,-127.83757952,0.00019997,2]
[360530212,1746847840165,-400.0,0.00019997,2]
[360530213,1746847840175,-206.46924019,0.00019997,2]
[360530214,1746847840184,-400.0,0.00019997,2]
[360530215,1746847840193,-250.0,0.00019997,2]
[360530216,1746847840203,-400.0,0.00019997,2]
[360530217,1746847840212,-278.7753251,0.00019997,2]
[360530218,1746847840221,-400.18882957,0.00019997,2]
[360530219,1746847840230,-400.0,0.00019997,2]
[360530220,1746847840239,-155.13829108,0.00019997,2]
[360530221,1746847840392,-377.20829626,0.00019997,2]
[360530222,1746847840402,-1000.0,0.00019997,2]
[360530223,1746847840411,-400.0,0.00019997,2]
[360530224,1746847840420,-400.0,0.00019997,2]
[360530225,1746847840430,-457.93206243,0.00019997,2]
[360530226,1746847840439,-666.0,0.00019997,2]
[360530227,1746847840448,-400.0,0.00019997,2]
[360530228,1746847840457,-400.0,0.00019997,2]
[360530229,1746847840467,-400.0,0.00019997,2]
[360530230,1746847840476,-400.0,0.00019997,2]
[360530231,1746847840485,-400.0,0.00019997,2]
[360530232,1746847840494,-400.0,0.00019997,2]
[360530233,1746847840504,-391.44273567,0.00019997,2]
[360530234,1746847840513,-464.46,0.00019997,2]
[360530235,1746847840523,-400.0,0.00019997,2]
[360530236,1746847840532,-400.0,0.00019997,2]
[360530237,1746847840541,-250.20843308,0.00019997,2]
[360530238,1746847840550,-493.33,0.00019997,2]
[360530239,1746847840560,-1083.22,0.00019997,2]
[360530240,1746847840569,-1152.8,0.00019997,2]
[360530241,1746847840578,-400.0,0.00019997,2]
[360530242,1746847840588,-164.6134521,0.00019997,2]
[360530243,1746847840597,-400.0,0.00019997,2]
[360530244,1746847840607,-2403.6,0.00019997,2]
[360530245,1746847840616,-2403.6,0.00019997,2]
[360530246,1746847840626,-400.0,0.00019997,2]
[360530247,1746847840635,-603.26,0.00019997,2]
[360530248,1746847840645,-603.26,0.00019997,2]
[360530249,1746847840654,-1014.71,0.00019997,2]
[360530250,1746847840663,-1014.71,0.00019997,2]
[360530251,1746847840673,-400.0,0.00019997,2]
[360530252,1746847840682,-400.0,0.00019997,2]
[360530253,1746847840691,-589.89,0.00019997,2]
[360530254,1746847840700,-480.07715825,0.00019997,2]
[360530255,1746847840710,-450.0,0.00019997,2]
[360530256,1746847840719,-488.3,0.00019997,2]
[360530257,1746847840728,-488.3,0.00019997,2]
[360530258,1746847840738,-400.0,0.00019997,2]
[360530259,1746847840746,-400.0,0.00019997,2]
[360530260,1746847840755,-400.0,0.00019997,2]
[360530261,1746847840764,-400.0,0.00019997,2]
[360530262,1746847840773,-400.0,0.00019997,2]
[360530264,1746847840782,-400.0,0.00019997,2]
[360530265,1746847840792,-400.0,0.00019997,2]
[360530266,1746847840801,-20608.82,0.00019997,2]
[360530267,1746847840815,-1573.09,0.00019997,2]
[360530268,1746847840824,-233.77642679,0.00019997,2]
[360530269,1746847840852,-740.80142255,0.00019997,2]
[360530281,1746847843136,-15804.82930123,0.00019997,2]
[360530283,1746847843238,-3829.41284943,0.00019997,2]
[360530284,1746847843247,-1573.09,0.00019997,2]
[360530285,1746847843257,-335.85686431,0.00019997,2]
[360530286,1746847843267,-494.56,0.00019997,2]
[360530287,1746847843277,-494.56,0.00019997,2]
[360530288,1746847843288,-400.0,0.00019997,2]
[360530289,1746847843299,-400.0,0.00019997,2]
[360530290,1746847843309,-400.0,0.00019997,2]
[360530291,1746847843319,-400.0,0.00019997,2]
[360530292,1746847843328,-400.0,0.00019997,2]
[360530293,1746847843337,-500.38,0.00019997,2]
[360530294,1746847843346,-400.0,0.00019997,2]
[360530295,1746847843355,-500.38,0.00019997,2]
[360530296,1746847843364,-400.0,0.00019997,2]
[360530297,1746847843372,-360.42458681,0.00019997,2]
[360530298,1746847843384,-39.57541319,0.00019997,2]
[360530299,1746847843393,-455.69,0.00019997,2]
[360530300,1746847843402,-363.64865689,0.00019997,2]
[360530311,1746847845928,-876.63079719,0.00019899,2]
[360530312,1746847845938,-92.04134311,0.00019997,2]
[360530313,1746847845948,-400.0,0.00019997,2]
[360530314,1746847845957,-400.0,0.00019997,2]
[360530315,1746847845965,-429.36,0.00019997,2]
[360530316,1746847845975,-429.36,0.00019997,2]
[360530317,1746847845985,-400.0,0.00019997,2]
[360530318,1746847845994,-166.91254303,0.00019997,2]
[360530319,1746847846003,-416.07,0.00019997,2]
[360530320,1746847846012,-416.07,0.00019997,2]
[360530321,1746847846021,-1235.0,0.00019997,2]
[360530322,1746847846031,-1235.0,0.00019997,2]
[360530323,1746847846041,-595.33,0.00019997,2]
[360530324,1746847846050,-595.33,0.00019997,2]
[360530325,1746847846059,-400.0,0.00019997,2]
[360530326,1746847846069,-400.0,0.00019997,2]
[360530327,1746847846077,-211.60430661,0.00019997,2]
[360530328,1746847846087,-191.81825081,0.00019997,2]
[360530329,1746847846106,-1439.71174919,0.00019997,2]
[360530330,1746847846117,-400.0,0.00019997,2]
[360530331,1746847846126,-1631.53,0.00019997,2]
[360530332,1746847846135,-400.0,0.00019997,2]
[360530333,1746847846147,-400.0,0.00019997,2]
[360530334,1746847846157,-1075.50872537,0.00019997,2]
[360530335,1746847846168,-115.36127463,0.00019997,2]
[360530336,1746847846178,-1190.87,0.00019997,2]
[360530337,1746847846187,-162.38259335,0.00019997,2]
[360530338,1746847846198,-237.61740665,0.00019997,2]
[360530339,1746847846207,-357.32773769,0.00019997,2]
[360530340,1746847846260,-42.67226231,0.00019997,2]
[360530341,1746847846269,-541.21,0.00019997,2]
[360530342,1746847846279,-541.21,0.00019997,2]
[360530343,1746847846288,-500.0,0.00019997,2]
[360530344,1746847846297,-551.14,0.00019997,2]
[360530345,1746847846306,-551.14,0.00019997,2]
[360530346,1746847846315,-362.62773769,0.00019997,2]
[360530356,1746847935038,-157.70735956,0.00019898,2]
[360530357,1746847947514,-157.70735956,0.00019898,2]
[360530361,1746847967475,-157.70735956,0.00019898,2]
[360530368,1746847997436,1522.5,0.0003,30]
[360530369,1746848002013,-157.70736,0.00019798,2]
[360530370,1746848002299,-21.49175083,0.00019898,2]
[360530371,1746848002325,-121.06088917,0.00019898,2]
[360530373,1746848006614,-163.9893418,0.00019898,2]
[360530377,1746848024176,-163.9893418,0.00019899,2]
[360530381,1746848077001,-278.30701727,0.00019799,2]
[360530383,1746848084214,-185.94232373,0.00019799,2]
[360530384,1746848084236,-95.07649385,0.00019898,2]
[360530386,1746848086222,277.16986476,0.0003,30]
[360530389,1746848101858,-193.50316977,0.00019898,2]
[360530391,1746848107659,-193.50316977,0.00019898,2]
[360530395,1746848128831,150.0,0.00019067,7]
[360530396,1746848129804,-193.50316977,0.00019798,2]
[360530401,1746848159376,1000.0,0.00019161,2]
[360530408,1746848214854,200.0,0.00010959,2]
[360530409,1746848215102,200.0,0.00010959,2]
[360530410,1746848215432,200.0,0.00010959,2]
[360530411,1746848215688,201.0,0.00010959,2]
[360530412,1746848218683,200.0,8.219e-05,2]
[360530413,1746848218931,200.0,8.219e-05,2]
[360530414,1746848219179,200.0,8.219e-05,2]
[360530417,1746848219433,329.0,8.219e-05,2]
[360530419,1746848228158,-233.29908279,0.00019798,2]
[360530420,1746848228956,-233.29908279,0.00019798,2]
[360530426,1746848251180,-92.72766942,0.00019798,2]
[360530427,1746848251204,-246.03645304,0.00019898,2]
[360530430,1746848257132,4539.35329642,0.0003,30]
[360530437,1746848302082,-296.30003093,0.00019798,2]
[360530440,1746848311528,-193.76925912,0.00019798,2]
[360530443,1746848334591,200.0,0.00010959,2]
[360530456,1746848396800,200.0,0.00010959,2]
[360530457,1746848397043,200.0,0.00010959,2]
[360530458,1746848397280,200.0,0.00010959,2]
[360530459,1746848397513,200.0,0.00010959,2]
[360530460,1746848397753,153.00761136,0.00010959,2]
[360530461,1746848397777,46.99238864,0.00010959,2]
[360530462,1746848398088,200.0,0.00010959,2]
[360530463,1746848398338,185.0,0.00010959,2]
[360530470,1746848414206,196.0,0.0003,30]
[360530478,1746848464315,195.32,0.000195,2]